bitfinex/quotes_BTCUSD_20220111
["timestamp","ask_amount","ask_price","bid_price","bid_amount"]
[1641913956132,0.001,41945.0,41942.0,0.119236]
[1641913956334,0.001,41945.0,41942.0,0.169236]
[1641913956934,0.00029166,41945.0,41943.0,0.45385508]
[1641913957132,0.20004,41947.0,41943.0,0.45385508]
[1641913957334,0.0439,41955.0,41944.0,0.059604]
[1641913957533,0.15,41958.0,41950.0,0.00125328]
[1641913957736,0.42,41966.0,41961.0,0.30671449]
[1641913957934,0.2004,41965.0,41961.0,0.05959]
[1641913958184,0.42,41966.0,41960.0,0.119179]
[1641913958387,0.00264204,41962.0,41960.0,0.119179]
[1641913958783,0.2001,41973.0,41960.0,0.23959082]
[1641913958983,0.42,41973.0,41961.0,0.17038317]
[1641913959183,0.42,41973.0,41968.0,0.27839355]
[1641913959583,0.423,41973.0,41966.0,0.12036345]
[1641913959784,0.29400859,41967.0,41966.0,0.119154]
[1641913960583,0.34400859,41967.0,41963.0,0.169166]
[1641913960784,0.34400859,41967.0,41964.0,0.059583]
[1641913961188,0.44400859,41967.0,41964.0,0.059583]
[1641913961389,0.05,41967.0,41964.0,0.059583]
[1641913961586,0.05,41967.0,41965.0,0.059585]
[1641913961587,0.001,41967.0,41965.0,0.059585]
[1641913961838,0.001,41967.0,41966.0,0.30187569]
[1641913962241,0.001,41967.0,41965.0,0.059585]
[1641913962842,0.3322961,41969.0,41965.0,0.059585]
[1641913963344,0.30247453,41968.0,41965.0,0.059585]
[1641913963548,0.00063817,41968.0,41965.0,0.059585]
[1641913963745,0.10063817,41968.0,41960.0,0.00085337]
[1641913964344,2.42930529,41966.0,41960.0,0.00085337]
[1641913964546,0.37812654,41965.0,41960.0,0.00085337]
[1641913964745,0.73573654,41962.0,41960.0,0.00085337]
[1641913964945,0.78573654,41962.0,41960.0,0.00085337]
[1641913965146,1.22748516,41962.0,41960.0,0.00085337]
[1641913965349,1.70194986,41961.0,41960.0,0.00085337]
[1641913965597,1.70194986,41961.0,41959.0,0.00085334]
[1641913965598,1.3,41960.0,41959.0,0.00085334]
[1641913965789,2.29417339,41960.0,41959.0,0.00085334]
[1641913965987,2.49407339,41960.0,41959.0,0.00085334]
[1641913966187,0.46893669,41946.0,41943.0,0.9613]
[1641913966391,0.46893669,41946.0,41942.0,0.11923231]
[1641913966587,0.46893669,41946.0,41939.0,0.11924]
[1641913966588,0.15,41946.0,41941.0,0.119234]
[1641913966788,0.15,41946.0,41943.0,0.30493729]
[1641913966989,0.15,41946.0,41943.0,0.36455329]
[1641913967188,0.15,41946.0,41944.0,0.119224]
[1641913967388,0.24519055,41949.0,41944.0,0.119224]
[1641913967589,0.001,41946.0,41945.0,0.05961797]
[1641913968790,0.001,41946.0,41944.0,0.05]
[1641913968992,0.5373259,41949.0,41944.0,0.05]
[1641913969192,0.5373259,41949.0,41945.0,0.059622]
[1641913969625,0.5383259,41949.0,41945.0,0.059622]
[1641913969825,0.151,41949.0,41945.0,0.11924]
[1641913970026,0.051,41949.0,41945.0,0.16924]
[1641913970426,0.001,41949.0,41945.0,0.17002288]
[1641913970627,0.001,41949.0,41947.0,0.05961517]
[1641913970831,0.28176279,41952.0,41948.0,0.24555135]
[1641913971027,0.28176279,41952.0,41949.0,0.059606]
[1641913971328,0.9444436,41958.0,41949.0,0.169214]
[1641913971528,0.3404008,41958.0,41949.0,0.05]
[1641913971728,0.001,41952.0,41950.0,0.05960735]
[1641913971930,0.001,41952.0,41951.0,0.119215]
[1641913973184,0.32472038,41953.0,41949.0,0.0604374]
[1641913973388,2.09255375,41953.0,41949.0,0.0008204]
[1641913973585,2.24255375,41953.0,41949.0,0.0008204]
[1641913973785,0.50522376,41952.0,41949.0,0.0008204]
[1641913974185,0.00128417,41951.0,41949.0,0.0008204]
[1641913974387,0.0439,41950.0,41949.0,0.0008204]
[1641913974586,0.3439,41950.0,41949.0,0.0008204]
[1641913974987,0.0439,41950.0,41946.0,0.118264]
[1641913975189,0.6040428,41952.0,41949.0,0.119216]
[1641913975389,0.7040428,41952.0,41949.0,0.119216]
[1641913975590,0.004,41950.0,41949.0,0.169216]
[1641913975790,0.004,41950.0,41949.0,0.669216]
[1641913975996,0.004,41950.0,41949.0,0.22882113]
[1641913976190,0.004,41950.0,41947.0,0.00069907]
[1641913976391,0.004,41950.0,41942.0,0.059621]
[1641913976589,0.004,41950.0,41936.0,0.63181996]
[1641913976590,0.25925278,41949.0,41943.0,0.059621]
[1641913977027,0.25925278,41949.0,41943.0,0.30304573]
[1641913977227,0.25925278,41949.0,41944.0,0.23845316]
[1641913977626,0.26225278,41949.0,41944.0,0.35768016]
[1641913977827,0.26225278,41949.0,41945.0,0.05]
[1641913978531,0.26225278,41949.0,41944.0,0.05]
[1641913978929,0.25925278,41949.0,41943.0,0.059621]
[1641913979333,0.25925278,41949.0,41945.0,0.00085416]
[1641913979730,0.32187478,41949.0,41945.0,0.00085416]
[1641913979930,0.32187478,41949.0,41945.0,0.06047516]
[1641913980132,0.32187478,41949.0,41945.0,0.00085416]
[1641913980435,0.26225278,41949.0,41945.0,0.00078052]
[1641913980681,0.76225278,41949.0,41945.0,0.05078052]
[1641913980880,0.5,41949.0,41946.0,0.059621]
[1641913981582,0.8048628,41954.0,41949.0,0.00395525]
[1641913981583,0.6040428,41954.0,41949.0,0.00395525]
[1641913981980,0.00046621,41956.0,41953.0,0.81058034]
[1641913982182,0.00046621,41956.0,41953.0,0.509595]
[1641913982381,0.00046621,41956.0,41953.0,0.61919]
[1641913982582,0.00046621,41956.0,41954.0,0.05959518]
[1641913982883,0.00046634,41957.0,41954.0,0.50964482]
[1641913983080,0.00046634,41957.0,41955.0,0.05]
[1641913983685,0.01746634,41957.0,41954.0,0.17879218]
[1641913983983,0.01746634,41957.0,41949.0,0.00395525]
[1641913983984,0.2501,41955.0,41949.0,0.00395525]
[1641913984181,0.2501,41955.0,41950.0,0.059614]
[1641913984628,0.49654626,41955.0,41950.0,0.34413481]
[1641913984927,0.49654626,41955.0,41949.0,0.00395525]
[1641913984928,0.31108011,41952.0,41949.0,0.00395525]
[1641913985127,0.36108011,41952.0,41949.0,0.06357025]
[1641913985329,0.2001,41955.0,41949.0,0.06357025]
[1641913985528,0.00189399,41956.0,41949.0,0.11357025]
[1641913985726,0.005,41952.0,41949.0,0.11357025]
[1641913985927,0.005,41952.0,41951.0,0.05960344]
[1641913986528,0.005,41952.0,41951.0,1.15225764]
[1641913986728,0.005,41952.0,41951.0,0.10960344]
[1641913986928,0.00062633,41956.0,41951.0,0.1109001]
[1641913987130,0.00062633,41956.0,41953.0,0.17880132]
[1641913987330,0.00062633,41956.0,41954.0,0.39244048]
[1641913987630,0.70908298,41962.0,41959.0,0.00123964]
[1641913987631,0.70884844,41962.0,41959.0,0.00123964]
[1641913987829,0.50698726,41961.0,41959.0,0.00123964]
[1641913988085,0.03037226,41961.0,41959.0,0.00123964]
[1641913988277,0.80698824,41969.0,41967.0,0.35560967]
[1641913988477,0.80698824,41969.0,41967.0,0.52606657]
[1641913988676,1.32784878,41975.0,41967.0,0.52606657]
[1641913988880,1.32784878,41975.0,41967.0,0.34733236]
[1641913988881,0.90784878,41975.0,41967.0,0.34733236]
[1641913989177,0.25613511,41976.0,41967.0,0.05]
[1641913989376,0.25613511,41976.0,41967.0,0.05958]
[1641913989576,0.25613511,41976.0,41968.0,0.059579]
[1641913989777,0.25613511,41976.0,41967.0,0.10958]
[1641913989778,0.32513511,41976.0,41967.0,0.10958]
[1641913989978,0.29056832,41969.0,41967.0,0.05]
[1641913990177,0.29056832,41969.0,41966.0,0.169159]
[1641913990580,0.29056832,41969.0,41967.0,0.11916]
[1641913990781,0.29056832,41969.0,41968.0,0.05]
[1641913990977,0.70254215,41975.0,41968.0,0.05]
[1641913991178,0.05,41976.0,41970.0,0.059582]
[1641913991378,0.20151407,41977.0,41970.0,0.109582]
[1641913991582,0.19151407,41977.0,41970.0,0.109582]
[1641913991829,0.016,41976.0,41970.0,0.05]
[1641913992030,0.78572984,41975.0,41973.0,0.29337962]
[1641913992229,1.02430379,41975.0,41969.0,0.169151]
[1641913992430,1.02430379,41975.0,41969.0,0.288302]
[1641913992631,0.23857395,41975.0,41969.0,0.288302]
[1641913992830,0.28857395,41975.0,41967.0,0.0012257]
[1641913993033,0.43041745,41974.0,41960.0,0.00085352]
[1641913993233,0.00128229,41972.0,41960.0,0.00085352]
[1641913993432,0.059603,41968.0,41960.0,0.00085352]
[1641913993630,0.059603,41968.0,41960.0,0.0008535]
[1641913993631,0.103503,41968.0,41960.0,0.0008535]
[1641913993931,0.70757972,41968.0,41960.0,0.0008535]
[1641913994135,0.26248636,41965.0,41960.0,0.0008535]
[1641913994734,0.35070934,41966.0,41965.0,0.00158365]
[1641913995135,0.00070934,41966.0,41965.0,0.00158365]
[1641913995879,0.32274711,41966.0,41965.0,0.00158365]
[1641913996078,2.58107058,41966.0,41965.0,0.00158365]
[1641913996278,3.04692889,41966.0,41965.0,0.00158365]
[1641913996479,3.09813194,41966.0,41965.0,0.00158365]
[1641913996681,3.47305298,41966.0,41965.0,8.365e-05]
[1641913996879,0.00120773,41961.0,41960.0,8e-06]
[1641913997078,0.19510772,41961.0,41960.0,0.00068676]
[1641913997279,0.19510772,41961.0,41949.0,0.00395525]
[1641913997280,0.95,41960.0,41949.0,0.00395525]
[1641913997479,0.00121562,41951.0,41949.0,0.00395525]
[1641913997678,1.30121562,41951.0,41936.0,0.1197]
[1641913997881,1.30121562,41951.0,41931.0,0.00271689]
[1641913997882,0.58931089,41937.0,41931.0,0.00271689]
[1641913998081,0.059645,41934.0,41931.0,0.00271689]
[1641913998278,0.44853914,41937.0,41931.0,0.00271689]
[1641913998478,0.44853914,41937.0,41929.0,0.059641]
[1641913998879,0.71284314,41933.0,41927.0,0.33276657]
[1641913999078,0.24096011,41930.0,41927.0,0.33276657]
[1641913999335,0.24096011,41930.0,41925.0,0.0001]
[1641913999336,0.29096011,41930.0,41925.0,0.0001]
[1641913999733,0.24296011,41930.0,41927.0,0.001]
[1641914000034,0.002,41930.0,41927.0,0.060646]
[1641914000238,0.002,41930.0,41929.0,0.87887534]
[1641914000536,0.002,41930.0,41929.0,1.33224489]
[1641914001035,0.00129634,41936.0,41932.0,0.059633]
[1641914001436,0.00129634,41936.0,41931.0,0.1789]
[1641914001635,0.00129634,41936.0,41930.0,0.119267]
[1641914001839,0.00429634,41936.0,41930.0,0.119267]
[1641914002036,0.00429634,41936.0,41932.0,0.00085431]
[1641914002236,0.00429634,41936.0,41933.0,0.059637]
[1641914002637,0.003,41936.0,41933.0,0.059637]
[1641914003085,0.23572811,41939.0,41933.0,0.059637]
[1641914003380,0.23572811,41939.0,41935.0,0.178893]
[1641914003579,0.04517368,41942.0,41932.0,0.00085431]
[1641914003779,0.003,41939.0,41932.0,0.00085431]
[1641914004382,0.003,41939.0,41935.0,0.17974628]
[1641914005080,0.043,41939.0,41935.0,0.17974628]
[1641914005279,0.04,41939.0,41935.0,0.17974628]
[1641914005480,0.04,41939.0,41935.0,0.18052894]
[1641914005680,0.059637,41938.0,41935.0,0.17967466]
[1641914005879,1.06031869,41936.0,41935.0,0.17967466]
[1641914006080,1.06031869,41936.0,41929.0,0.0031311]
[1641914006081,0.00121331,41933.0,41929.0,0.0031311]
[1641914006280,0.26639189,41932.0,41929.0,0.0031311]
[1641914006481,0.36735195,41931.0,41929.0,0.0031311]
[1641914006679,0.46735195,41931.0,41929.0,0.0031311]
[1641914006934,0.46735195,41931.0,41928.0,0.26416312]
[1641914006935,0.059657,41931.0,41928.0,0.26416312]
[1641914007131,0.1,41931.0,41928.0,0.26416312]
[1641914007731,0.106,41931.0,41927.0,0.059647]
[1641914007931,0.006,41931.0,41927.0,0.059647]
[1641914008135,0.006,41931.0,41928.0,0.059644]
[1641914008532,0.006,41931.0,41928.0,0.109644]
[1641914008732,0.006,41931.0,41928.0,0.059644]
[1641914008932,0.006,41931.0,41925.0,0.0001]
[1641914009131,0.06091317,41929.0,41925.0,0.0001]
[1641914009331,0.38576056,41928.0,41925.0,0.0001]
[1641914009534,0.52966056,41928.0,41925.0,0.0001]
[1641914009733,0.30398994,41927.0,41925.0,0.0001]
[1641914009931,0.36134702,41926.0,41925.0,0.0001]
[1641914010132,0.46134702,41926.0,41925.0,0.0001]
[1641914010782,0.1,41926.0,41925.0,0.0001]
[1641914010983,0.0439,41928.0,41925.0,0.0001]
[1641914011183,0.0439,41928.0,41925.0,0.059745]
[1641914011384,0.0439,41928.0,41925.0,0.0001]
[1641914011784,0.05114441,41928.0,41925.0,0.0001]
[1641914011986,0.36925458,41927.0,41925.0,0.0001]
[1641914012190,0.05,41927.0,41925.0,0.0001]
[1641914012585,0.0499,41928.0,41925.0,0.0001]
[1641914013185,0.059654,41927.0,41925.0,0.0001]
[1641914013585,0.24583804,41928.0,41925.0,0.059751]
[1641914013787,0.005,41927.0,41925.0,0.059751]
[1641914013987,0.005,41927.0,41925.0,0.0001]
[1641914014335,0.064654,41927.0,41924.0,0.11780787]
[1641914014736,0.2522306,41925.0,41924.0,0.11780787]
[1641914015132,0.5,41925.0,41924.0,0.11780787]
[1641914015333,0.059654,41927.0,41925.0,0.059651]
[1641914015334,0.1,41927.0,41925.0,0.059651]
[1641914015536,0.2446,41928.0,41925.0,0.059651]
[1641914015537,0.2007,41928.0,41925.0,0.059651]
[1641914015734,0.006,41927.0,41925.0,0.059651]
[1641914016133,0.006,41927.0,41926.0,0.34073877]
[1641914016533,0.006,41927.0,41926.0,0.05]
[1641914016933,0.006,41927.0,41924.0,0.11769793]
[1641914017133,0.7804607,41933.0,41925.0,0.05965]
[1641914017336,0.20046,41928.0,41925.0,0.05965]
[1641914017533,0.8304607,41933.0,41925.0,0.05965]
[1641914017733,0.8304607,41933.0,41925.0,0.35818172]
[1641914017934,0.006,41928.0,41925.0,0.05965]
[1641914018181,0.006,41928.0,41926.0,0.05965]
[1641914018380,0.47052319,41928.0,41924.0,0.11769793]
[1641914018583,0.621769,41928.0,41924.0,0.00070293]
[1641914018781,0.621769,41928.0,41924.0,0.00071345]
[1641914018983,0.32575224,41927.0,41924.0,0.00071345]
[1641914019182,0.28327713,41926.0,41924.0,0.00071345]
[1641914019783,0.005,41926.0,41925.0,0.059651]
[1641914019984,0.42412573,41926.0,41925.0,0.059651]
[1641914020184,0.52412573,41926.0,41923.0,0.44221347]
[1641914020483,0.059662,41925.0,41923.0,0.44221347]
[1641914021182,0.33470694,41925.0,41923.0,0.4415]
[1641914021581,0.43470694,41925.0,41923.0,0.4415]
[1641914021833,0.43970694,41925.0,41923.0,0.4415]
[1641914022436,0.43970694,41925.0,41921.0,0.00071393]
[1641914022437,1.69819706,41924.0,41921.0,0.00071393]
[1641914022639,0.00127666,41922.0,41921.0,0.00071393]
[1641914022844,1.46453166,41922.0,41921.0,0.00071393]
[1641914023035,0.059681,41919.0,41916.0,0.00285613]
[1641914023235,0.00122036,41917.0,41916.0,0.00285613]
[1641914023433,1.34512036,41917.0,41916.0,0.00285613]
[1641914023634,1.49512036,41917.0,41907.0,0.1]
[1641914023834,0.32957535,41911.0,41907.0,0.1]
[1641914024035,0.36811741,41909.0,41907.0,0.159676]
[1641914024236,0.31216595,41910.0,41907.0,0.1]
[1641914024439,0.00125853,41912.0,41907.0,0.1]
[1641914024635,0.00125853,41912.0,41908.0,0.11934]
[1641914024837,0.0489,41917.0,41908.0,0.57717367]
[1641914025036,0.0489,41917.0,41909.0,0.05]
[1641914025037,0.0439,41917.0,41909.0,0.05]
[1641914025436,0.0439,41917.0,41908.0,0.50783367]
[1641914025437,0.32206918,41917.0,41908.0,0.50783367]
[1641914025885,0.32706918,41917.0,41908.0,0.50783367]
[1641914026084,0.32706918,41917.0,41911.0,0.00085455]
[1641914026585,0.5,41912.0,41911.0,0.12018155]
[1641914026785,0.5,41912.0,41911.0,0.00085455]
[1641914026985,0.6,41912.0,41911.0,0.00085455]
[1641914027185,0.6,41912.0,41907.0,0.40918115]
[1641914027487,0.49141618,41917.0,41907.0,0.40918115]
[1641914027488,0.0439,41917.0,41907.0,0.40918115]
[1641914027686,0.0439,41917.0,41911.0,0.119329]
[1641914027891,0.0439,41917.0,41914.0,0.059662]
[1641914028087,0.1,41923.0,41914.0,0.059662]
[1641914028289,0.00066061,41926.0,41913.0,0.05]
[1641914028488,0.00066056,41926.0,41913.0,0.05]
[1641914028687,0.059661,41923.0,41922.0,0.29416477]
[1641914028889,0.11998156,41926.0,41920.0,0.059656]
[1641914029088,0.00066056,41926.0,41922.0,0.059655]
[1641914029562,0.00066082,41926.0,41922.0,0.059655]
[1641914029762,0.00066082,41926.0,41923.0,0.27309236]
[1641914029961,0.00066082,41926.0,41923.0,0.059655]
[1641914029962,0.00566082,41926.0,41923.0,0.059655]
[1641914030666,0.00566082,41926.0,41920.0,0.12016345]
[1641914030861,0.005,41926.0,41920.0,0.11999364]
[1641914031060,0.30075292,41927.0,41920.0,0.11999364]
[1641914031461,1.10526976,41922.0,41920.0,0.00068464]
[1641914031662,0.41372536,41922.0,41920.0,0.00068464]
[1641914032063,0.059662,41924.0,41920.0,0.00068463]
[1641914032563,0.4589265,41920.0,41919.0,0.11661063]
[1641914032762,1.22050617,41923.0,41919.0,0.11661063]
[1641914032763,0.059665,41921.0,41919.0,0.11661063]
[1641914033183,0.11933,41925.0,41919.0,0.11661063]
[1641914033481,0.30143575,41927.0,41922.0,0.059657]
[1641914033683,0.30022,41927.0,41924.0,0.059651]
[1641914033880,0.006,41925.0,41924.0,0.059651]
[1641914034379,0.006,41925.0,41924.0,0.30812724]
[1641914034580,0.006,41925.0,41924.0,0.059651]
[1641914035179,0.30078195,41927.0,41923.0,0.238601]
[1641914035183,0.20078195,41927.0,41923.0,0.238601]
[1641914035381,0.30078195,41927.0,41922.0,0.059649]
[1641914035783,0.34681623,41926.0,41922.0,0.059649]
[1641914035983,0.30332372,41923.0,41922.0,0.059649]
[1641914036181,0.40332372,41923.0,41922.0,0.059649]
[1641914036382,0.30578195,41927.0,41922.0,0.059649]
[1641914036383,0.20578195,41927.0,41922.0,0.059649]
[1641914036581,0.20578195,41927.0,41923.0,0.119307]
[1641914036830,0.26543695,41927.0,41923.0,0.119307]
[1641914037031,0.00056193,41925.0,41923.0,0.119307]
[1641914037430,0.00056193,41925.0,41923.0,0.238616]
[1641914038032,0.007,41925.0,41923.0,0.238616]
[1641914038631,0.007,41925.0,41923.0,0.158616]
[1641914039031,2.15717569,41924.0,41921.0,0.059653]
[1641914039230,0.059661,41923.0,41921.0,0.059653]
[1641914039431,0.00124209,41924.0,41921.0,0.059653]
[1641914039831,0.25268688,41924.0,41921.0,0.059653]
[1641914040031,0.26068688,41924.0,41921.0,0.059653]
[1641914040233,0.059661,41923.0,41921.0,0.059653]
[1641914040589,0.0053,41924.0,41921.0,0.059653]
[1641914041283,0.059661,41923.0,41920.0,0.178962]
[1641914041882,0.066661,41923.0,41920.0,0.178962]
[1641914042082,2.45344003,41921.0,41920.0,0.178962]
[1641914042283,0.295066,41921.0,41920.0,0.178962]
[1641914042484,0.007,41923.0,41920.0,0.178962]
[1641914042682,0.007,41923.0,41920.0,0.53283762]
[1641914042883,0.00755801,41923.0,41920.0,0.53283762]
[1641914043184,0.00055801,41923.0,41920.0,0.119309]
[1641914043885,0.01055801,41923.0,41920.0,0.119309]
[1641914044184,0.01,41923.0,41920.0,0.119309]
[1641914044635,0.01,41923.0,41922.0,0.47301836]
[1641914045234,0.00055803,41924.0,41920.0,0.46415653]
[1641914045433,0.00055799,41924.0,41922.0,0.05965]
[1641914045634,0.28106787,41924.0,41922.0,0.05965]
[1641914045835,0.20094,41923.0,41922.0,0.05965]
[1641914047034,0.008,41924.0,41922.0,0.05965]
[1641914047334,0.000558,41925.0,41923.0,1.17190506]
[1641914047535,0.000558,41925.0,41923.0,0.85]
[1641914047734,0.000558,41925.0,41924.0,0.75]
[1641914047936,0.80896741,41935.0,41927.0,0.28632068]
[1641914048184,0.23109663,41929.0,41927.0,0.33632068]
[1641914048384,0.80896741,41935.0,41928.0,1.75545963]
[1641914048586,0.80896741,41944.0,41934.0,0.00123068]
[1641914048983,0.0999,41946.0,41934.0,0.00123068]
[1641914049383,0.33749676,41946.0,41943.0,0.059618]
[1641914049585,0.33749676,41946.0,41944.0,0.059618]
[1641914050186,0.0999,41946.0,41944.0,0.059618]
[1641914050588,0.80996741,41955.0,41949.0,0.32117865]
[1641914050785,0.80996741,41955.0,41951.0,0.059607]
[1641914050986,0.80996741,41955.0,41950.0,0.059608]
[1641914051186,0.80996741,41955.0,41950.0,0.06082393]
[1641914051838,0.001,41955.0,41950.0,0.06082393]
[1641914052136,0.001,41955.0,41950.0,0.34449777]
[1641914052337,0.001,41955.0,41950.0,0.70556455]
[1641914052539,0.00165732,41955.0,41951.0,0.109604]
[1641914052738,0.00165732,41955.0,41951.0,0.059604]
[1641914053339,0.00165732,41955.0,41951.0,0.53930045]
[1641914053539,0.00065732,41955.0,41953.0,0.69499327]
[1641914053740,0.00065732,41955.0,41953.0,0.3015275]
[1641914053944,0.00065732,41955.0,41954.0,0.00125473]
[1641914054739,0.001,41959.0,41954.0,0.00125473]
[1641914054939,0.00065734,41957.0,41956.0,0.059599]
[1641914056186,0.001,41959.0,41957.0,0.32748512]
[1641914056387,0.001,41959.0,41957.0,0.059599]
[1641914056591,0.001,41959.0,41956.0,0.059599]
[1641914056592,0.001,41959.0,41954.0,0.119198]
[1641914056787,0.001,41959.0,41949.0,0.119224]
[1641914056788,0.059616,41957.0,41949.0,0.119224]
[1641914056987,0.059616,41957.0,41942.0,0.120492]
[1641914056988,0.37121718,41956.0,41942.0,0.120492]
[1641914057188,0.37121718,41956.0,41942.0,0.119247]
[1641914057389,0.37444463,41950.0,41945.0,0.2679514]
[1641914057689,0.47444463,41950.0,41946.0,0.059615]
[1641914057888,0.47444463,41950.0,41940.0,0.0027393]
[1641914057889,0.37215792,41949.0,41944.0,0.059627]
[1641914058089,0.47215792,41949.0,41944.0,0.059627]
[1641914058492,0.27348441,41946.0,41944.0,0.059627]
[1641914058691,0.27348441,41946.0,41942.0,0.119243]
[1641914058692,0.36356311,41945.0,41942.0,0.119243]
[1641914058892,0.36356311,41945.0,41940.0,0.00273902]
[1641914059094,0.059638,41943.0,41940.0,0.00273902]
[1641914059333,0.06088213,41943.0,41940.0,0.00273902]
[1641914059534,0.40741683,41942.0,41940.0,0.00273902]
[1641914059734,0.34164401,41941.0,41937.0,0.119262]
[1641914060034,0.44164401,41941.0,41937.0,0.119262]
[1641914060435,0.34164401,41941.0,41937.0,0.119262]
[1641914060636,0.34164401,41941.0,41938.0,0.05963]
[1641914061035,0.006,41942.0,41938.0,0.05963]
[1641914061437,0.27348441,41946.0,41938.0,0.05963]
[1641914061939,0.27348441,41946.0,41941.0,0.059619]
[1641914062138,0.28148441,41946.0,41941.0,0.059619]
[1641914062337,0.28148441,41946.0,41942.0,0.24557526]
[1641914062738,0.008,41946.0,41942.0,0.24557526]
[1641914062938,0.008,41946.0,41944.0,0.059615]
[1641914063192,0.04924,41968.0,41948.0,1.3]
[1641914063390,0.001,41971.0,41964.0,0.1]
[1641914063594,0.80955891,41971.0,41967.0,0.00123096]
[1641914063790,0.80955891,41971.0,41964.0,0.0439]
[1641914063791,0.33302891,41971.0,41970.0,0.0012504]
[1641914063992,0.36002891,41971.0,41970.0,0.0012504]
[1641914064792,0.027,41971.0,41970.0,0.0012504]
[1641914065391,0.2952094,41977.0,41972.0,0.059577]
[1641914065593,0.2952094,41977.0,41973.0,0.059575]
[1641914065992,0.3372094,41977.0,41972.0,0.178727]
[1641914066396,0.66032614,41975.0,41972.0,0.178727]
[1641914066594,0.042,41977.0,41973.0,0.059574]
[1641914067035,0.20028,41976.0,41973.0,0.059574]
[1641914067435,0.30348795,41976.0,41973.0,0.059574]
[1641914067635,0.002,41979.0,41973.0,0.059574]
[1641914067837,0.002,41979.0,41975.0,0.059571]
[1641914068037,0.046,41976.0,41975.0,0.059571]
[1641914068337,0.046,41976.0,41975.0,1.72118884]
[1641914068537,0.00067289,41977.0,41976.0,1.3]
[1641914068738,0.00067289,41977.0,41976.0,0.72381576]
[1641914068937,0.00067289,41977.0,41976.0,0.35300276]
[1641914069138,0.001,41980.0,41976.0,0.35300276]
[1641914069139,7.289e-05,41980.0,41977.0,1.319115]
[1641914069341,0.00064425,41979.0,41978.0,0.00125945]
[1641914069538,0.00064425,41979.0,41978.0,1.02738351]
[1641914070340,0.00011714,41982.0,41979.0,1.730368]
[1641914070596,0.00011714,41982.0,41980.0,0.00123808]
[1641914070788,0.002,41985.0,41981.0,0.370813]
[1641914070991,0.70584354,41997.0,41984.0,0.085]
[1641914071188,0.70584354,41997.0,41991.0,0.00125107]
[1641914071388,0.70584354,41997.0,41990.0,0.119096]
[1641914071389,0.38777367,41993.0,41990.0,0.119096]
[1641914071588,0.38777367,41993.0,41985.0,0.0012552]
[1641914071787,0.38777367,41993.0,41981.0,0.39]
[1641914071788,0.2004,41989.0,41981.0,0.39]
[1641914071992,0.26332938,41988.0,41981.0,0.39]
[1641914072187,0.26332938,41988.0,41976.0,0.00121585]
[1641914072389,0.67179737,41985.0,41979.0,0.059572]
[1641914072789,0.2004,41989.0,41984.0,0.00123082]
[1641914072989,0.00239257,41993.0,41988.0,0.00128909]
[1641914073189,0.00239257,41993.0,41992.0,0.00121273]
[1641914073790,0.38962271,41993.0,41992.0,0.00121273]
[1641914073991,0.38962271,41993.0,41988.0,0.059555]
[1641914074191,0.38723014,41993.0,41983.0,0.00124633]
[1641914074435,0.38723014,41993.0,41978.0,0.163032]
[1641914074436,0.20028,41987.0,41978.0,0.282157]
[1641914074639,0.20028,41987.0,41978.0,0.163032]
[1641914074640,0.25028,41987.0,41978.0,0.163032]
[1641914074839,0.99750166,41986.0,41976.0,0.00121908]
[1641914075036,0.72410218,41977.0,41973.0,0.00085398]
[1641914075238,0.72410218,41977.0,41973.0,0.00170788]
[1641914075441,0.82410218,41977.0,41973.0,0.0008539]
[1641914075738,0.72410218,41977.0,41973.0,0.0008539]
[1641914076038,0.008,41977.0,41973.0,0.0604299]
[1641914076438,0.008,41977.0,41973.0,0.06128374]
[1641914076641,0.008,41977.0,41974.0,0.06082085]
[1641914076842,0.008,41977.0,41975.0,0.119142]
[1641914077043,0.0001,41977.0,41976.0,0.00124711]
[1641914077247,0.0005981,41981.0,41976.0,0.00124711]
[1641914077641,0.0005981,41981.0,41978.0,0.119123]
[1641914077842,0.00048851,41981.0,41979.0,0.119117]
[1641914078146,0.00948851,41981.0,41980.0,0.00123426]
[1641914078630,0.00948851,41981.0,41980.0,1.64696733]
[1641914079030,0.009,41981.0,41980.0,0.39696733]
[1641914079231,0.009,41981.0,41980.0,0.00123426]
[1641914079430,0.00048858,41983.0,41980.0,0.00123426]
[1641914079630,0.00048858,41983.0,41981.0,0.05955206]
[1641914080032,0.00248858,41983.0,41980.0,0.12434226]
[1641914080732,0.00248858,41983.0,41980.0,0.123108]
[1641914080934,0.00248858,41983.0,41981.0,0.34363609]
[1641914081132,0.00248858,41983.0,41981.0,0.05121463]
[1641914081332,0.00050817,41984.0,41981.0,0.05121463]
[1641914081531,0.00050817,41984.0,41981.0,0.00121463]
[1641914082136,0.03850817,41984.0,41981.0,0.00421463]
[1641914082537,0.038,41984.0,41983.0,0.00129795]
[1641914083638,0.038,41984.0,41981.0,0.003]
[1641914083840,0.28893393,41983.0,41981.0,0.003]
[1641914085038,0.28893393,41983.0,41979.0,0.119117]
[1641914085239,0.00050478,41984.0,41979.0,0.119117]
[1641914086087,0.43390576,41984.0,41979.0,0.119117]
[1641914087290,0.72936689,41984.0,41979.0,0.119117]
[1641914087889,0.77936689,41984.0,41979.0,0.119117]
[1641914088089,0.36896591,41984.0,41979.0,0.119117]
[1641914088291,0.36896591,41984.0,41979.0,0.178678]
[1641914088491,0.36896647,41984.0,41979.0,0.178678]
[1641914088890,0.0039,41980.0,41979.0,0.178678]
[1641914089339,0.0039,41980.0,41978.0,0.12032261]
[1641914090240,0.29066362,41980.0,41978.0,0.12032261]
[1641914090439,0.0169,41980.0,41978.0,0.12032261]
[1641914091040,0.0169,41980.0,41973.0,0.00071692]
[1641914091440,0.0039,41980.0,41973.0,0.00071692]
[1641914091838,0.29753233,41975.0,41973.0,0.00071692]
[1641914092039,0.34753233,41975.0,41973.0,0.00071692]
[1641914092241,0.76241846,41975.0,41973.0,0.00071692]
[1641914092442,0.81241846,41975.0,41973.0,0.00071692]
[1641914093093,0.81241846,41975.0,41973.0,0.00143366]
[1641914093491,0.81241846,41975.0,41973.0,0.00071674]
[1641914093889,0.81241846,41975.0,41972.0,0.00071674]